[Event "*** Titled Tuesday Blitz"]
[Site "Chess.com"]
[Date "2020.04.21"]
[Round "2"]
[White "BakaPG"]
[Black "Fighter008"]
[Result "1-0"]
[WhiteElo "2704"]
[BlackElo "2488"]
[TimeControl "180+1"]
[EndTime "10:17:16 PDT"]
[Termination "BakaPG won by resignation"]

1. e4 {[%clk 0:03:00.9]} 1... c5 {[%clk 0:02:59.7]} 2. Nf3 {[%clk 0:03:00]} 2...
d6 {[%clk 0:02:59.9]} 3. c3 {[%clk 0:02:58.9]} 3... Nf6 {[%clk 0:02:59]} 4. Bd3
{[%clk 0:02:59.5]} 4... Nbd7 {[%clk 0:02:56.5]} 5. Bc2 {[%clk 0:02:58.2]} 5...
b6 {[%clk 0:02:56.7]} 6. O-O {[%clk 0:02:55.9]} 6... Bb7 {[%clk 0:02:56.8]} 7.
Re1 {[%clk 0:02:56]} 7... Qc7 {[%clk 0:02:56.7]} 8. d4 {[%clk 0:02:56]} 8... e5
{[%clk 0:02:54.4]} 9. d5 {[%clk 0:02:53.8]} 9... g6 {[%clk 0:02:51]} 10. c4
{[%clk 0:02:53.1]} 10... Bg7 {[%clk 0:02:49.6]} 11. Nc3 {[%clk 0:02:52.5]} 11...
a6 {[%clk 0:02:49.6]} 12. Rb1 {[%clk 0:02:46.7]} 12... O-O {[%clk 0:02:48.5]}
13. a3 {[%clk 0:02:44.7]} 13... Nh5 {[%clk 0:02:46.3]} 14. Bd3 {[%clk
0:02:38.2]} 14... Nf4 {[%clk 0:02:37.4]} 15. Bf1 {[%clk 0:02:38]} 15... Rae8
{[%clk 0:02:34.5]} 16. b4 {[%clk 0:02:36.8]} 16... h6 {[%clk 0:02:17.3]} 17. g3
{[%clk 0:02:32.7]} 17... Nh5 {[%clk 0:02:13.9]} 18. Nh4 {[%clk 0:02:33.3]} 18...
Nhf6 {[%clk 0:02:10.6]} 19. Be3 {[%clk 0:02:25.5]} 19... Kh7 {[%clk 0:01:51.8]}
20. h3 {[%clk 0:02:24.8]} 20... Ng8 {[%clk 0:01:46]} 21. Qb3 {[%clk 0:02:19.7]}
21... Ba8 {[%clk 0:01:44.7]} 22. Qa4 {[%clk 0:02:14.5]} 22... Bb7 {[%clk
0:01:43.5]} 23. Rb2 {[%clk 0:02:08.5]} 23... f5 {[%clk 0:01:43]} 24. exf5 {[%clk
0:02:07.2]} 24... gxf5 {[%clk 0:01:42.9]} 25. bxc5 {[%clk 0:02:00.7]} 25... Nxc5
{[%clk 0:01:38.3]} 26. Qc2 {[%clk 0:01:58.4]} 26... e4 {[%clk 0:01:35.2]} 27.
Reb1 {[%clk 0:01:53.6]} 27... Bc8 {[%clk 0:01:23.3]} 28. Rxb6 {[%clk 0:01:47.9]}
28... Be5 {[%clk 0:01:07.7]} 29. Ng2 {[%clk 0:01:42.8]} 29... Qg7 {[%clk
0:01:04.9]} 30. Na4 {[%clk 0:01:39.1]} 30... Nxa4 {[%clk 0:00:59]} 31. Qxa4
{[%clk 0:01:38.4]} 31... f4 {[%clk 0:00:59.3]} 32. gxf4 {[%clk 0:01:35.4]} 32...
Bxf4 {[%clk 0:00:54.1]} 33. Bxf4 {[%clk 0:01:31.9]} 33... Bxh3 {[%clk 0:00:54]}
34. Rb7 {[%clk 0:01:27.4]} 34... Re7 {[%clk 0:00:49.5]} 35. Rxe7 {[%clk
0:01:23.9]} 35... Nxe7 {[%clk 0:00:49.1]} 36. Bg3 {[%clk 0:01:23.8]} 36... Nf5
{[%clk 0:00:46.6]} 37. Qc2 {[%clk 0:01:15.6]} 37... Nxg3 {[%clk 0:00:38.4]} 38.
fxg3 {[%clk 0:01:13.5]} 38... Qd4+ {[%clk 0:00:37.8]} 39. Kh2 {[%clk 0:01:12.2]}
39... Rf2 {[%clk 0:00:37.5]} 40. Qd1 {[%clk 0:01:04.7]} 40... Rd2 {[%clk
0:00:32.7]} 41. Qh5 {[%clk 0:01:02.3]} 41... Bxg2 {[%clk 0:00:30.7]} 42. Qf7+
{[%clk 0:00:59.6]} 42... Qg7 {[%clk 0:00:27.7]} 43. Qxg7+ {[%clk 0:00:59.6]}
43... Kxg7 {[%clk 0:00:28.6]} 44. Bxg2 {[%clk 0:01:00.3]} 44... Kf6 {[%clk
0:00:29.2]} 45. Re1 {[%clk 0:00:59.5]} 1-0

[Event "*** Titled Tuesday Blitz"]
[Site "Chess.com"]
[Date "2020.04.21"]
[Round "2"]
[White "FM_VS99"]
[Black "Ind1anStar"]
[Result "0-1"]
[WhiteElo "2306"]
[BlackElo "2620"]
[TimeControl "180+1"]
[EndTime "10:17:17 PDT"]
[Termination "Ind1anStar won by resignation"]

1. c4 {[%clk 0:03:00.9]} 1... e6 {[%clk 0:02:59.4]} 2. g3 {[%clk 0:03:01.1]}
2... d5 {[%clk 0:02:59]} 3. Bg2 {[%clk 0:03:01.6]} 3... Nf6 {[%clk 0:02:59.5]}
4. Nf3 {[%clk 0:03:02]} 4... Be7 {[%clk 0:02:59.2]} 5. O-O {[%clk 0:03:02.5]}
5... O-O {[%clk 0:02:59.5]} 6. d4 {[%clk 0:03:03]} 6... dxc4 {[%clk 0:02:59.9]}
7. Qc2 {[%clk 0:03:03.2]} 7... a6 {[%clk 0:03:00.4]} 8. a4 {[%clk 0:03:00.2]}
8... Bd7 {[%clk 0:03:00.6]} 9. Qxc4 {[%clk 0:02:59.5]} 9... Bc6 {[%clk 0:03:01]}
10. Nc3 {[%clk 0:02:55.6]} 10... a5 {[%clk 0:03:00.4]} 11. Bg5 {[%clk
0:02:54.1]} 11... Nd5 {[%clk 0:02:54.2]} 12. Bxe7 {[%clk 0:02:51.5]} 12... Qxe7
{[%clk 0:02:55.1]} 13. Ne5 {[%clk 0:02:50.5]} 13... Nb6 {[%clk 0:02:51.4]} 14.
Nxc6 {[%clk 0:02:46.7]} 14... Nxc6 {[%clk 0:02:51.2]} 15. Qd3 {[%clk 0:02:44.6]}
15... Nb4 {[%clk 0:02:51.4]} 16. Qd2 {[%clk 0:02:43]} 16... c6 {[%clk
0:02:51.6]} 17. e3 {[%clk 0:02:41.9]} 17... Rfd8 {[%clk 0:02:50.5]} 18. Qe2
{[%clk 0:02:40.9]} 18... e5 {[%clk 0:02:48.8]} 19. dxe5 {[%clk 0:02:34.1]} 19...
Qxe5 {[%clk 0:02:48.2]} 20. Rfd1 {[%clk 0:02:34.5]} 20... h6 {[%clk 0:02:44.9]}
21. Rxd8+ {[%clk 0:02:32.8]} 21... Rxd8 {[%clk 0:02:45]} 22. Rd1 {[%clk
0:02:33.7]} 22... Qe7 {[%clk 0:02:36.1]} 23. b3 {[%clk 0:02:20.2]} 23... Rd6
{[%clk 0:02:23.2]} 24. Qh5 {[%clk 0:02:12.1]} 24... Rxd1+ {[%clk 0:02:06.3]} 25.
Qxd1 {[%clk 0:02:09.1]} 25... Nd7 {[%clk 0:02:04.1]} 26. Ne4 {[%clk 0:02:05.6]}
26... Ne5 {[%clk 0:01:54.2]} 27. Nd6 {[%clk 0:02:01.2]} 27... Qd7 {[%clk
0:01:38.3]} 28. Qd4 {[%clk 0:01:54]} 28... Ned3 {[%clk 0:01:32.7]} 29. Nc4
{[%clk 0:01:48.4]} 29... Qf5 {[%clk 0:01:00]} 30. f4 {[%clk 0:01:07.7]} 30...
Nc5 {[%clk 0:00:22.9]} 31. e4 {[%clk 0:00:50.9]} 31... Qh5 {[%clk 0:00:19.5]}
32. g4 {[%clk 0:00:46.2]} 32... Qxg4 {[%clk 0:00:19.3]} 33. Qxc5 {[%clk
0:00:45.1]} 33... Qd1+ {[%clk 0:00:19.6]} 34. Bf1 {[%clk 0:00:43.6]} 34... Qg4+
{[%clk 0:00:19.5]} 35. Bg2 {[%clk 0:00:40.8]} 35... Qd1+ {[%clk 0:00:19.3]} 36.
Kf2 {[%clk 0:00:38.7]} 36... Nd3+ {[%clk 0:00:18.9]} 37. Kg3 {[%clk 0:00:35]}
37... Nxc5 {[%clk 0:00:19.3]} 38. Ne5 {[%clk 0:00:34.7]} 38... Qxb3+ {[%clk
0:00:19.5]} 0-1

[Event "*** Titled Tuesday Blitz"]
[Site "Chess.com"]
[Date "2020.04.21"]
[Round "2"]
[White "saisree"]
[Black "x-5963514717"]
[Result "0-1"]
[WhiteElo "2314"]
[BlackElo "2628"]
[TimeControl "180+1"]
[EndTime "10:17:18 PDT"]
[Termination "x-5963514717 won by resignation"]

1. e4 {[%clk 0:03:00.9]} 1... e5 {[%clk 0:02:59.4]} 2. Nf3 {[%clk 0:03:00.8]}
2... Nc6 {[%clk 0:02:59.5]} 3. Bc4 {[%clk 0:03:01.4]} 3... Bc5 {[%clk
0:02:58.8]} 4. c3 {[%clk 0:03:01.4]} 4... Nf6 {[%clk 0:02:58.5]} 5. d3 {[%clk
0:03:01.6]} 5... O-O {[%clk 0:02:57.8]} 6. O-O {[%clk 0:03:01.1]} 6... d6 {[%clk
0:02:54.3]} 7. Nbd2 {[%clk 0:02:57.9]} 7... a5 {[%clk 0:02:51.3]} 8. a4 {[%clk
0:02:56.4]} 8... Re8 {[%clk 0:02:45.9]} 9. Re1 {[%clk 0:02:54.2]} 9... Be6
{[%clk 0:02:45]} 10. Bxe6 {[%clk 0:02:44.9]} 10... Rxe6 {[%clk 0:02:44.2]} 11.
Nc4 {[%clk 0:02:45.2]} 11... d5 {[%clk 0:02:31.7]} 12. exd5 {[%clk 0:02:41.2]}
12... Qxd5 {[%clk 0:02:32.6]} 13. Ne3 {[%clk 0:02:24.1]} 13... Qd7 {[%clk
0:02:29]} 14. Qb3 {[%clk 0:02:10.1]} 14... b6 {[%clk 0:02:14.6]} 15. Rd1 {[%clk
0:02:09.3]} 15... Rd8 {[%clk 0:02:10.5]} 16. h3 {[%clk 0:02:03.2]} 16... Nd5
{[%clk 0:02:04.8]} 17. Nc4 {[%clk 0:01:33.3]} 17... Nf4 {[%clk 0:01:54.2]} 18.
Be3 {[%clk 0:01:22.6]} 18... Bxe3 {[%clk 0:01:49.2]} 19. Nxe3 {[%clk 0:01:22.3]}
19... Nxd3 {[%clk 0:01:46.6]} 20. Ne1 {[%clk 0:01:08.2]} 20... Nc5 {[%clk
0:01:33.8]} 21. Qb5 {[%clk 0:00:39.3]} 21... Qe8 {[%clk 0:01:30.4]} 22. Rxd8
{[%clk 0:00:38.8]} 22... Nxd8 {[%clk 0:01:28.7]} 23. Qc4 {[%clk 0:00:32.5]}
23... Rd6 {[%clk 0:01:23.4]} 24. Nf3 {[%clk 0:00:24.8]} 24... e4 {[%clk
0:01:05.9]} 25. Nd4 {[%clk 0:00:24.5]} 25... Nde6 {[%clk 0:01:01]} 26. Ndf5
{[%clk 0:00:18.8]} 26... Rd2 {[%clk 0:00:56.5]} 27. b4 {[%clk 0:00:18.3]} 27...
Nd3 {[%clk 0:00:52]} 28. Ng4 {[%clk 0:00:11.6]} 28... h5 {[%clk 0:00:45.3]} 29.
Qxe4 {[%clk 0:00:06.8]} 29... hxg4 {[%clk 0:00:40.1]} 30. Qe3 {[%clk 0:00:07.4]}
30... Rxf2 {[%clk 0:00:33.7]} 31. Qxd3 {[%clk 0:00:07.8]} 31... Nf4 {[%clk
0:00:26.6]} 32. Qd4 {[%clk 0:00:03.2]} 32... Ne2+ {[%clk 0:00:26.2]} 0-1

[Event "*** Titled Tuesday Blitz"]
[Site "Chess.com"]
[Date "2020.04.21"]
[Round "2"]
[White "CMS13"]
[Black "Angel_Hranitel_37"]
[Result "1-0"]
[WhiteElo "2137"]
[BlackElo "2386"]
[TimeControl "180+1"]
[EndTime "10:17:18 PDT"]
[Termination "CMS13 won by checkmate"]

1. e4 {[%clk 0:03:00.9]} 1... c5 {[%clk 0:02:57.2]} 2. Nc3 {[%clk 0:02:59.7]}
2... Nc6 {[%clk 0:02:55.9]} 3. Bb5 {[%clk 0:02:58.9]} 3... Nd4 {[%clk
0:02:55.8]} 4. Nf3 {[%clk 0:02:58.5]} 4... e6 {[%clk 0:02:54.6]} 5. Ba4 {[%clk
0:02:56.6]} 5... a6 {[%clk 0:02:40.7]} 6. Nxd4 {[%clk 0:02:51]} 6... cxd4 {[%clk
0:02:41.6]} 7. Ne2 {[%clk 0:02:50]} 7... e5 {[%clk 0:02:41]} 8. O-O {[%clk
0:02:49.3]} 8... Nf6 {[%clk 0:02:40.5]} 9. d3 {[%clk 0:02:49.2]} 9... Bd6 {[%clk
0:02:31.6]} 10. c3 {[%clk 0:02:29.9]} 10... dxc3 {[%clk 0:02:29.7]} 11. bxc3
{[%clk 0:02:19.3]} 11... b5 {[%clk 0:02:29.8]} 12. Bb3 {[%clk 0:02:18.8]} 12...
O-O {[%clk 0:02:29.5]} 13. f4 {[%clk 0:02:13.1]} 13... Qb6+ {[%clk 0:01:39.6]}
14. Kh1 {[%clk 0:02:12]} 14... Ng4 {[%clk 0:01:39.6]} 15. Qe1 {[%clk 0:02:06.6]}
15... exf4 {[%clk 0:01:31.3]} 16. Nxf4 {[%clk 0:02:06]} 16... Qc5 {[%clk
0:01:21.6]} 17. d4 {[%clk 0:01:51.7]} 17... Qg5 {[%clk 0:01:07.7]} 18. e5 {[%clk
0:01:12.1]} 18... Bc7 {[%clk 0:00:22.6]} 19. h3 {[%clk 0:00:55.7]} 19... Nh6
{[%clk 0:00:13.5]} 20. Ne6 {[%clk 0:00:46.8]} 20... Qh5 {[%clk 0:00:13.9]} 21.
Nxf8 {[%clk 0:00:45.2]} 21... Kxf8 {[%clk 0:00:13.6]} 22. Bxh6 {[%clk
0:00:41.4]} 22... Bb7 {[%clk 0:00:07.1]} 23. Bxg7+ {[%clk 0:00:21.6]} 23... Kxg7
{[%clk 0:00:06.9]} 24. Qg3+ {[%clk 0:00:21.6]} 24... Qg6 {[%clk 0:00:05.4]} 25.
Rxf7+ {[%clk 0:00:20.5]} 25... Kh6 {[%clk 0:00:05.2]} 26. Qh4+ {[%clk
0:00:20.1]} 26... Qh5 {[%clk 0:00:04.3]} 27. Rxh7+ {[%clk 0:00:19.2]} 27... Kxh7
{[%clk 0:00:05.2]} 28. Qxh5+ {[%clk 0:00:19.2]} 28... Kg7 {[%clk 0:00:06.1]} 29.
Qf7+ {[%clk 0:00:19]} 29... Kh6 {[%clk 0:00:06.4]} 30. Bc2 {[%clk 0:00:19.3]}
30... Bd8 {[%clk 0:00:07.3]} 31. Qg6# {[%clk 0:00:19.5]} 1-0

[Event "*** Titled Tuesday Blitz"]
[Site "Chess.com"]
[Date "2020.04.21"]
[Round "2"]
[White "Manukyan_Artak"]
[Black "MoreChessJulia"]
[Result "0-1"]
[WhiteElo "2347"]
[BlackElo "1766"]
[TimeControl "180+1"]
[EndTime "10:17:18 PDT"]
[Termination "MoreChessJulia won by checkmate"]

1. e4 {[%clk 0:03:00.9]} 1... c5 {[%clk 0:02:58.8]} 2. Nf3 {[%clk 0:03:00.3]}
2... d6 {[%clk 0:02:58]} 3. c3 {[%clk 0:02:57.6]} 3... Bg4 {[%clk 0:02:55.8]} 4.
h3 {[%clk 0:02:49.6]} 4... Bxf3 {[%clk 0:02:53.9]} 5. Qxf3 {[%clk 0:02:50.5]}
5... e6 {[%clk 0:02:53.8]} 6. d4 {[%clk 0:02:49.6]} 6... cxd4 {[%clk 0:02:52.6]}
7. cxd4 {[%clk 0:02:50.5]} 7... Nf6 {[%clk 0:02:52.5]} 8. Nc3 {[%clk 0:02:44.1]}
8... Nbd7 {[%clk 0:02:47.1]} 9. Bf4 {[%clk 0:02:31.1]} 9... a6 {[%clk
0:02:43.1]} 10. Bd3 {[%clk 0:02:25.7]} 10... Be7 {[%clk 0:02:38.9]} 11. O-O
{[%clk 0:02:20.8]} 11... O-O {[%clk 0:02:35.1]} 12. e5 {[%clk 0:02:21]} 12...
Ne8 {[%clk 0:02:23.4]} 13. Qxb7 {[%clk 0:02:12.3]} 13... dxe5 {[%clk 0:02:18.7]}
14. dxe5 {[%clk 0:02:09.3]} 14... Nc5 {[%clk 0:02:16.7]} 15. Bxh7+ {[%clk
0:01:58.5]} 15... Kxh7 {[%clk 0:02:16.1]} 16. Qf3 {[%clk 0:01:59.3]} 16... Rc8
{[%clk 0:02:07.1]} 17. Rad1 {[%clk 0:01:53.9]} 17... Qc7 {[%clk 0:02:04.2]} 18.
Rfe1 {[%clk 0:01:44.3]} 18... Qc6 {[%clk 0:02:01.8]} 19. Qg4 {[%clk 0:01:38.3]}
19... f5 {[%clk 0:01:57.7]} 20. exf6 {[%clk 0:01:30.5]} 20... Nxf6 {[%clk
0:01:57.4]} 21. Qe2 {[%clk 0:01:21.8]} 21... Nfe4 {[%clk 0:01:51.8]} 22. Nxe4
{[%clk 0:01:13.9]} 22... Rxf4 {[%clk 0:01:50.7]} 23. Qh5+ {[%clk 0:00:51.9]}
23... Kg8 {[%clk 0:01:49]} 24. Ng5 {[%clk 0:00:52.4]} 24... Bxg5 {[%clk
0:01:43.3]} 25. Qxg5 {[%clk 0:00:53.3]} 25... Rcf8 {[%clk 0:01:42.9]} 26. Re2
{[%clk 0:00:45]} 26... Ne4 {[%clk 0:01:34.8]} 27. Qe5 {[%clk 0:00:25.8]} 27...
Nxf2 {[%clk 0:01:30.9]} 28. Rd6 {[%clk 0:00:20.3]} 28... Qc1+ {[%clk 0:01:27.9]}
29. Kh2 {[%clk 0:00:20.6]} 29... Qh1+ {[%clk 0:01:14.1]} 30. Kg3 {[%clk
0:00:20.4]} 30... Rf3+ {[%clk 0:00:58.3]} 31. Kh4 {[%clk 0:00:17.7]} 31... Qxg2
{[%clk 0:00:51.6]} 32. Qxe6+ {[%clk 0:00:16.9]} 32... Kh8 {[%clk 0:00:51.1]} 33.
Qg6 {[%clk 0:00:15.4]} 33... R3f4+ {[%clk 0:00:46.4]} 34. Kh5 {[%clk 0:00:15]}
34... Qxh3+ {[%clk 0:00:45.8]} 35. Kg5 {[%clk 0:00:12.5]} 35... Qh4# {[%clk
0:00:42.9]} 0-1

[Event "*** Titled Tuesday Blitz"]
[Site "Chess.com"]
[Date "2020.04.21"]
[Round "2"]
[White "GulamaliRises"]
[Black "dusanacns"]
[Result "1-0"]
[WhiteElo "2560"]
[BlackElo "2776"]
[TimeControl "180+1"]
[EndTime "10:17:19 PDT"]
[Termination "GulamaliRises won by resignation"]

1. e4 {[%clk 0:03:00.9]} 1... c5 {[%clk 0:02:36.3]} 2. Nf3 {[%clk 0:02:54.1]}
2... d6 {[%clk 0:02:36.7]} 3. d4 {[%clk 0:02:54.3]} 3... cxd4 {[%clk 0:02:37.6]}
4. Nxd4 {[%clk 0:02:55]} 4... Nf6 {[%clk 0:02:37.9]} 5. Nc3 {[%clk 0:02:55.5]}
5... a6 {[%clk 0:02:38.5]} 6. Be3 {[%clk 0:02:55.8]} 6... e5 {[%clk 0:02:38.2]}
7. Nb3 {[%clk 0:02:54.7]} 7... Be6 {[%clk 0:02:38.7]} 8. f3 {[%clk 0:02:53.7]}
8... Be7 {[%clk 0:02:38.9]} 9. Qd2 {[%clk 0:02:54.2]} 9... O-O {[%clk
0:02:39.4]} 10. O-O-O {[%clk 0:02:44.1]} 10... Qc7 {[%clk 0:02:39.9]} 11. g4
{[%clk 0:02:38.5]} 11... Rc8 {[%clk 0:02:40.4]} 12. g5 {[%clk 0:02:37.7]} 12...
Nh5 {[%clk 0:02:40.4]} 13. Nd5 {[%clk 0:02:20.4]} 13... Bxd5 {[%clk 0:02:38]}
14. exd5 {[%clk 0:02:21.3]} 14... Nd7 {[%clk 0:02:30.3]} 15. Bh3 {[%clk
0:02:16.5]} 15... a5 {[%clk 0:02:17.8]} 16. Kb1 {[%clk 0:02:15.3]} 16... a4
{[%clk 0:02:17.5]} 17. Nc1 {[%clk 0:02:15.5]} 17... a3 {[%clk 0:02:17.9]} 18. b3
{[%clk 0:02:15.2]} 18... g6 {[%clk 0:02:16.7]} 19. c4 {[%clk 0:02:08.5]} 19...
Bf8 {[%clk 0:02:13.8]} 20. Ne2 {[%clk 0:02:04.3]} 20... Bg7 {[%clk 0:01:53.9]}
21. Rc1 {[%clk 0:01:48.4]} 21... Re8 {[%clk 0:01:52.5]} 22. Nc3 {[%clk
0:01:36.2]} 22... f5 {[%clk 0:01:32.1]} 23. gxf6 {[%clk 0:01:34.1]} 23... Ndxf6
{[%clk 0:01:32.1]} 24. Be6+ {[%clk 0:01:32.7]} 24... Kh8 {[%clk 0:01:31.5]} 25.
Nb5 {[%clk 0:01:23.5]} 25... Qe7 {[%clk 0:01:31.2]} 26. c5 {[%clk 0:01:23]}
26... dxc5 {[%clk 0:01:19]} 27. Bxc5 {[%clk 0:01:22.4]} 27... Qd8 {[%clk
0:01:19.4]} 28. Nd6 {[%clk 0:01:19.2]} 28... Re7 {[%clk 0:01:13.7]} 29. Qb4
{[%clk 0:01:11]} 29... Nf4 {[%clk 0:00:59.3]} 30. Nxb7 {[%clk 0:01:05.7]} 30...
Rxb7 {[%clk 0:00:47.2]} 31. Qxb7 {[%clk 0:01:06.6]} 31... Rb8 {[%clk 0:00:33.1]}
32. Be7 {[%clk 0:00:50.9]} 32... Rxb7 {[%clk 0:00:25.7]} 33. Bxd8 {[%clk
0:00:51.1]} 33... N6xd5 {[%clk 0:00:24.6]} 34. Rc8 {[%clk 0:00:44.3]} 34... h5
{[%clk 0:00:23.9]} 35. Bg5+ {[%clk 0:00:37.2]} 35... Kh7 {[%clk 0:00:20.9]} 36.
Bg8+ {[%clk 0:00:36.7]} 36... Kh8 {[%clk 0:00:07.7]} 37. Bxd5+ {[%clk
0:00:36.7]} 37... Kh7 {[%clk 0:00:08.2]} 38. Bxb7 {[%clk 0:00:33.9]} 1-0

[Event "*** Titled Tuesday Blitz"]
[Site "Chess.com"]
[Date "2020.04.21"]
[Round "2"]
[White "hellokostya"]
[Black "stanyga"]
[Result "0-1"]
[WhiteElo "2481"]
[BlackElo "2699"]
[TimeControl "180+1"]
[EndTime "10:17:21 PDT"]
[Termination "stanyga won by resignation"]

1. d4 {[%clk 0:02:43.7]} 1... Nf6 {[%clk 0:02:58.6]} 2. c4 {[%clk 0:02:42.9]}
2... e6 {[%clk 0:02:57.7]} 3. Nf3 {[%clk 0:02:40.6]} 3... b6 {[%clk 0:02:56.8]}
4. g3 {[%clk 0:02:40.4]} 4... Ba6 {[%clk 0:02:55]} 5. b3 {[%clk 0:02:39.8]} 5...
Bb7 {[%clk 0:02:54]} 6. Bg2 {[%clk 0:02:39.8]} 6... Bb4+ {[%clk 0:02:54.5]} 7.
Bd2 {[%clk 0:02:37.7]} 7... c5 {[%clk 0:02:54.2]} 8. Bxb4 {[%clk 0:02:35.8]}
8... cxb4 {[%clk 0:02:54.2]} 9. O-O {[%clk 0:02:36.7]} 9... O-O {[%clk
0:02:52.7]} 10. Qd3 {[%clk 0:02:37.3]} 10... d6 {[%clk 0:02:48.6]} 11. Nbd2
{[%clk 0:02:37.6]} 11... Nbd7 {[%clk 0:02:44.5]} 12. e4 {[%clk 0:02:36.6]} 12...
e5 {[%clk 0:02:44.6]} 13. Ne1 {[%clk 0:02:33.3]} 13... Re8 {[%clk 0:02:36.3]}
14. Nc2 {[%clk 0:02:33.1]} 14... a5 {[%clk 0:02:34.4]} 15. Rfe1 {[%clk
0:02:25.2]} 15... Qc7 {[%clk 0:02:10.6]} 16. Ne3 {[%clk 0:02:19.6]} 16... exd4
{[%clk 0:02:05.6]} 17. Qxd4 {[%clk 0:02:19.5]} 17... Qc5 {[%clk 0:02:05.3]} 18.
Qd3 {[%clk 0:02:13.2]} 18... Ne5 {[%clk 0:02:04.4]} 19. Qe2 {[%clk 0:02:04.2]}
19... Nc6 {[%clk 0:02:04]} 20. Nd5 {[%clk 0:01:48.8]} 20... Nxd5 {[%clk
0:02:01.5]} 21. cxd5 {[%clk 0:01:48.9]} 21... Nd4 {[%clk 0:02:01.5]} 22. Qg4
{[%clk 0:01:32.9]} 22... Nc2 {[%clk 0:01:06.7]} 23. Rac1 {[%clk 0:01:26.4]}
23... Bxd5 {[%clk 0:00:49.5]} 24. Rf1 {[%clk 0:00:44.2]} 24... Be6 {[%clk
0:00:47.9]} 25. Qd1 {[%clk 0:00:40.4]} 25... Rac8 {[%clk 0:00:36.6]} 26. Nc4
{[%clk 0:00:39]} 26... Nd4 {[%clk 0:00:36.6]} 27. Qd2 {[%clk 0:00:21]} 27... b5
{[%clk 0:00:31]} 28. Nxd6 {[%clk 0:00:11.4]} 28... Qxd6 {[%clk 0:00:26.8]} 29.
Rxc8 {[%clk 0:00:10.1]} 29... Rxc8 {[%clk 0:00:24.8]} 30. Rd1 {[%clk 0:00:09.9]}
30... Rd8 {[%clk 0:00:24.5]} 31. Qe1 {[%clk 0:00:07.8]} 31... Ne2+ {[%clk
0:00:22.9]} 32. Qxe2 {[%clk 0:00:06.5]} 32... Qxd1+ {[%clk 0:00:22.8]} 0-1

[Event "*** Titled Tuesday Blitz"]
[Site "Chess.com"]
[Date "2020.04.21"]
[Round "2"]
[White "SoltaniciR"]
[Black "GMBenjaminBok"]
[Result "0-1"]
[WhiteElo "2594"]
[BlackElo "2873"]
[TimeControl "180+1"]
[EndTime "10:17:22 PDT"]
[Termination "GMBenjaminBok won by resignation"]

1. e4 {[%clk 0:03:00.9]} 1... c5 {[%clk 0:02:59.7]} 2. Nf3 {[%clk 0:03:00.7]}
2... d6 {[%clk 0:03:00.3]} 3. Nc3 {[%clk 0:03:00.8]} 3... Nf6 {[%clk 0:03:00.4]}
4. d4 {[%clk 0:03:00.8]} 4... cxd4 {[%clk 0:03:00.3]} 5. Nxd4 {[%clk 0:03:01.7]}
5... a6 {[%clk 0:03:00.6]} 6. Be3 {[%clk 0:03:01.5]} 6... e5 {[%clk 0:03:00.4]}
7. Nb3 {[%clk 0:03:01.5]} 7... Be6 {[%clk 0:02:59.5]} 8. f3 {[%clk 0:03:01.1]}
8... Be7 {[%clk 0:02:59.6]} 9. Qd2 {[%clk 0:03:00.2]} 9... O-O {[%clk
0:03:00.2]} 10. O-O-O {[%clk 0:02:57.3]} 10... Nbd7 {[%clk 0:03:00.7]} 11. g4
{[%clk 0:02:56.4]} 11... b5 {[%clk 0:03:01]} 12. g5 {[%clk 0:02:54.3]} 12... Nh5
{[%clk 0:03:01]} 13. Kb1 {[%clk 0:02:53]} 13... Nb6 {[%clk 0:03:00.3]} 14. Rg1
{[%clk 0:02:28.1]} 14... Rc8 {[%clk 0:02:43.5]} 15. Nd5 {[%clk 0:02:19]} 15...
Bxd5 {[%clk 0:02:37.3]} 16. exd5 {[%clk 0:02:18.3]} 16... Nc4 {[%clk 0:02:37.8]}
17. Bxc4 {[%clk 0:02:10.9]} 17... bxc4 {[%clk 0:02:38.7]} 18. Nc1 {[%clk
0:02:10]} 18... c3 {[%clk 0:02:35.3]} 19. bxc3 {[%clk 0:02:10]} 19... Qc7 {[%clk
0:02:29]} 20. Rg4 {[%clk 0:01:54.2]} 20... Qxc3 {[%clk 0:02:21.4]} 21. Qxc3
{[%clk 0:01:53.1]} 21... Rxc3 {[%clk 0:02:22.3]} 22. Rd3 {[%clk 0:01:52.4]}
22... Rc7 {[%clk 0:02:15]} 23. Rb4 {[%clk 0:01:28.3]} 23... Rfc8 {[%clk
0:02:11.8]} 24. Rb2 {[%clk 0:01:17.7]} 24... Nf4 {[%clk 0:01:52.3]} 25. Bxf4
{[%clk 0:01:14.4]} 25... exf4 {[%clk 0:01:53.2]} 26. Ne2 {[%clk 0:01:11.4]}
26... Bxg5 {[%clk 0:01:51.3]} 27. c3 {[%clk 0:00:50.3]} 27... Bf6 {[%clk
0:01:49.2]} 28. Rb3 {[%clk 0:00:50.4]} 28... g5 {[%clk 0:01:47]} 29. Kc2 {[%clk
0:00:45.5]} 29... Be5 {[%clk 0:01:43.3]} 30. Ra3 {[%clk 0:00:41.3]} 30... Rb8
{[%clk 0:01:28.9]} 31. Rb3 {[%clk 0:00:29.6]} 31... Rxb3 {[%clk 0:01:21]} 32.
axb3 {[%clk 0:00:30.2]} 32... Kg7 {[%clk 0:01:21.5]} 33. Nd4 {[%clk 0:00:30.1]}
33... Bxd4 {[%clk 0:01:14.7]} 34. Rxd4 {[%clk 0:00:31]} 34... a5 {[%clk
0:01:05.2]} 35. Kd3 {[%clk 0:00:29]} 35... f5 {[%clk 0:01:01.7]} 36. Ra4 {[%clk
0:00:28.1]} 36... Rc5 {[%clk 0:01:01.3]} 37. Kd4 {[%clk 0:00:25.9]} 37... Kf6
{[%clk 0:00:56.6]} 38. b4 {[%clk 0:00:25.8]} 38... axb4 {[%clk 0:00:55.3]} 39.
cxb4 {[%clk 0:00:26.7]} 39... Rc1 {[%clk 0:00:54.4]} 40. b5 {[%clk 0:00:26.2]}
40... Rb1 {[%clk 0:00:49.5]} 41. Ra6 {[%clk 0:00:22.7]} 41... Rd1+ {[%clk
0:00:42.8]} 42. Kc4 {[%clk 0:00:20.8]} 42... Ke5 {[%clk 0:00:43.3]} 43. Ra8
{[%clk 0:00:19.8]} 43... Rc1+ {[%clk 0:00:41.7]} 44. Kb4 {[%clk 0:00:19.8]}
44... g4 {[%clk 0:00:39.6]} 0-1